[Event "Titled Tuesday Blitz January 17 Early 2023"]
[White "Pak, Yevgeniy"]
[Black "parintele_chess"]
[WhiteFideId "14201712"]
[WhiteElo "2384"]
[BlackElo "2259"]
[Result "1/2-1/2"]
[Round "01"]
[TimeControl "180+2"]
[Date "2023.01.17"]
[WhiteClock "0:00:07"]
[BlackClock "0:00:17"]

1. d4 {[%clk 0:02:59]}  d5 {[%clk 0:02:59]} 2. Nf3 {[%clk 0:02:58]}  Nf6 {[%clk 0:02:58]} 3. Bf4 {[%clk 0:02:59]}  g6 {[%clk 0:02:58]} 4. e3 {[%clk 0:02:54]}  Bg7 {[%clk 0:02:57]} 5. Be2 {[%clk 0:02:51]}  O-O {[%clk 0:02:57]} 6. h3 {[%clk 0:02:50]}  c5 {[%clk 0:02:57]} 7. O-O {[%clk 0:02:49]}  Nc6 {[%clk 0:02:57]} 8. c3 {[%clk 0:02:48]}  Nd7 {[%clk 0:02:56]} 9. Nbd2 {[%clk 0:01:40]}  e5 {[%clk 0:02:48]} 10. dxe5 {[%clk 0:01:41]}  Ndxe5 {[%clk 0:02:49]} 11. Nxe5 {[%clk 0:01:40]}  Nxe5 {[%clk 0:02:50]} 12. Nf3 {[%clk 0:01:41]}  Nxf3+ {[%clk 0:02:49]} 13. Bxf3 {[%clk 0:01:41]}  Be6 {[%clk 0:02:49]} 14. Qc2 {[%clk 0:01:33]}  Bf5 {[%clk 0:02:28]} 15. Qb3 {[%clk 0:01:31]}  Bd3 {[%clk 0:02:24]} 16. Rfd1 {[%clk 0:01:29]}  c4 {[%clk 0:02:20]} 17. Qxb7 {[%clk 0:01:29]}  Rb8 {[%clk 0:01:51]} 18. Bxb8 {[%clk 0:01:27]}  Qxb8 {[%clk 0:01:52]} 19. Qxb8 {[%clk 0:01:08]}  Rxb8 {[%clk 0:01:53]} 20. Rd2 {[%clk 0:01:08]}  Rb5 {[%clk 0:01:46]} 21. Rad1 {[%clk 0:01:06]}  h5 {[%clk 0:01:32]} 22. Be2 {[%clk 0:01:06]}  Be4 {[%clk 0:01:23]} 23. b3 {[%clk 0:00:53]}  Bxc3 {[%clk 0:01:21]} 24. bxc4 {[%clk 0:00:53]}  dxc4 {[%clk 0:01:14]} 25. Rd8+ {[%clk 0:00:51]}  Kg7 {[%clk 0:01:13]} 26. Bxc4 {[%clk 0:00:52]}  Rf5 {[%clk 0:00:59]} 27. f3 {[%clk 0:00:43]}  Bc6 {[%clk 0:00:57]} 28. Rc8 {[%clk 0:00:23]}  Ba4 {[%clk 0:00:54]} 29. Rd3 {[%clk 0:00:20]}  Be5 {[%clk 0:00:43]} 30. Ra8 {[%clk 0:00:16]}  Bg3 {[%clk 0:00:41]} 31. Rxa7 {[%clk 0:00:16]}  Be8 {[%clk 0:00:37]} 32. Kf1 {[%clk 0:00:14]}  Rc5 {[%clk 0:00:37]} 33. Rd8 {[%clk 0:00:12]}  Rxc4 {[%clk 0:00:23]} 34. Rxe8 {[%clk 0:00:12]}  Rc2 {[%clk 0:00:24]} 35. Ree7 {[%clk 0:00:12]}  Rf2+ {[%clk 0:00:23]} 36. Kg1 {[%clk 0:00:12]}  Re2 {[%clk 0:00:19]} 37. Rxf7+ {[%clk 0:00:12]}  Kg8 {[%clk 0:00:19]} 38. Rg7+ {[%clk 0:00:11]}  Kh8 {[%clk 0:00:16]} 39. Rh7+ {[%clk 0:00:11]}  Kg8 {[%clk 0:00:17]} 40. Rhg7+ {[%clk 0:00:09]}  Kf8 {[%clk 0:00:17]} 41. Rgf7+ {[%clk 0:00:09]}  Kg8 {[%clk 0:00:17]} 42. Rg7+ {[%clk 0:00:07]} 1/2-1/2


[Site "https://www.chess.com"]

[Event "Titled Tuesday Blitz January 17 Early 2023"]
[White "Perrine, Dalton"]
[Black "Clawitter, Craig"]
[WhiteFideId "2048434"]
[BlackFideId "2023105"]
[WhiteElo "2228"]
[BlackElo "2050"]
[Result "1-0"]
[Round "01"]
[TimeControl "180+2"]
[Date "2023.01.17"]
[WhiteClock "0:00:23"]
[BlackClock "0:00:36"]

1. Nf3 {[%clk 0:03:00]}  Nf6 {[%clk 0:02:59]} 2. g3 {[%clk 0:02:48]}  d5 {[%clk 0:02:58]} 3. Bg2 {[%clk 0:02:44]}  e6 {[%clk 0:02:58]} 4. O-O {[%clk 0:02:40]}  Be7 {[%clk 0:02:58]} 5. d4 {[%clk 0:02:41]}  O-O {[%clk 0:02:58]} 6. c4 {[%clk 0:02:41]}  dxc4 {[%clk 0:02:59]} 7. Qc2 {[%clk 0:02:42]}  a6 {[%clk 0:02:59]} 8. a4 {[%clk 0:02:42]}  Bd7 {[%clk 0:02:59]} 9. Rd1 {[%clk 0:02:41]}  Bc6 {[%clk 0:02:53]} 10. Nc3 {[%clk 0:02:40]}  Nbd7 {[%clk 0:02:35]} 11. e4 {[%clk 0:02:39]}  b5 {[%clk 0:02:34]} 12. d5 {[%clk 0:02:29]}  exd5 {[%clk 0:02:24]} 13. e5 {[%clk 0:02:29]}  Ne8 {[%clk 0:02:17]} 14. Nd4 {[%clk 0:02:25]}  Bb7 {[%clk 0:02:01]} 15. Nxd5 {[%clk 0:02:12]}  Nc5 {[%clk 0:01:28]} 16. Nf5 {[%clk 0:01:58]}  Bg5 {[%clk 0:01:05]} 17. Nf6+ {[%clk 0:01:29]}  Bxf6 {[%clk 0:01:04]} 18. Rxd8 {[%clk 0:01:27]}  Bxd8 {[%clk 0:01:04]} 19. Bxb7 {[%clk 0:01:22]}  Nxb7 {[%clk 0:01:04]} 20. axb5 {[%clk 0:01:19]}  g6 {[%clk 0:00:52]} 21. Nh6+ {[%clk 0:01:02]}  Kg7 {[%clk 0:00:52]} 22. bxa6 {[%clk 0:00:45]}  Nc5 {[%clk 0:00:45]} 23. Qxc4 {[%clk 0:00:40]}  Be7 {[%clk 0:00:39]} 24. Be3 {[%clk 0:00:28]}  Ne6 {[%clk 0:00:36]} 25. Qc6 {[%clk 0:00:23]} 1-0


[Site "https://www.chess.com"]

[Event "Titled Tuesday Blitz January 17 Early 2023"]
[White "Cepo, Toni"]
[Black "Mohamed Anees M"]
[WhiteFideId "4675916"]
[BlackFideId "35065815"]
[WhiteElo "2145"]
[BlackElo "2315"]
[Result "0-1"]
[Round "01"]
[TimeControl "180+2"]
[Date "2023.01.17"]
[WhiteClock "0:00:33"]
[BlackClock "0:01:33"]

1. e4 {[%clk 0:02:57]}  c6 {[%clk 0:02:58]} 2. d4 {[%clk 0:02:52]}  d5 {[%clk 0:02:58]} 3. Nc3 {[%clk 0:02:52]}  dxe4 {[%clk 0:02:58]} 4. Nxe4 {[%clk 0:02:53]}  Bf5 {[%clk 0:02:59]} 5. Qf3 {[%clk 0:02:52]}  e6 {[%clk 0:02:56]} 6. Ne2 {[%clk 0:02:36]}  Nd7 {[%clk 0:02:56]} 7. N2g3 {[%clk 0:02:31]}  Bg6 {[%clk 0:02:56]} 8. h4 {[%clk 0:02:28]}  h6 {[%clk 0:02:55]} 9. Bd3 {[%clk 0:02:17]}  Be7 {[%clk 0:02:32]} 10. Bf4 {[%clk 0:01:52]}  Nb6 {[%clk 0:02:25]} 11. c3 {[%clk 0:01:41]}  Nd5 {[%clk 0:02:24]} 12. h5 {[%clk 0:01:40]}  Bxe4 {[%clk 0:02:22]} 13. Bxe4 {[%clk 0:01:39]}  Nxf4 {[%clk 0:02:21]} 14. Qxf4 {[%clk 0:01:39]}  Qb6 {[%clk 0:02:18]} 15. Qd2 {[%clk 0:01:38]}  Nf6 {[%clk 0:02:17]} 16. Bc2 {[%clk 0:01:37]}  O-O-O {[%clk 0:02:17]} 17. O-O-O {[%clk 0:01:35]}  c5 {[%clk 0:02:12]} 18. dxc5 {[%clk 0:01:07]}  Bxc5 {[%clk 0:02:11]} 19. Qe2 {[%clk 0:01:00]}  Bxf2 {[%clk 0:02:09]} 20. Ne4 {[%clk 0:00:58]}  Qe3+ {[%clk 0:02:04]} 21. Qxe3 {[%clk 0:00:57]}  Bxe3+ {[%clk 0:02:04]} 22. Kb1 {[%clk 0:00:58]}  Nd5 {[%clk 0:01:55]} 23. c4 {[%clk 0:00:53]}  Nf4 {[%clk 0:01:46]} 24. g3 {[%clk 0:00:51]}  Rxd1+ {[%clk 0:01:39]} 25. Rxd1 {[%clk 0:00:49]}  Nxh5 {[%clk 0:01:39]} 26. Nd6+ {[%clk 0:00:49]}  Kc7 {[%clk 0:01:40]} 27. Nxf7 {[%clk 0:00:49]}  Rf8 {[%clk 0:01:41]} 28. Ne5 {[%clk 0:00:45]}  Rd8 {[%clk 0:01:37]} 29. Rf1 {[%clk 0:00:42]}  Nf6 {[%clk 0:01:35]} 30. Re1 {[%clk 0:00:35]}  Bf2 {[%clk 0:01:33]} 31. Re2 {[%clk 0:00:33]}  Bxg3 {[%clk 0:01:33]} 32. Nf7 {[%clk 0:00:33]}  Rf8 {[%clk 0:01:33]} 0-1


[Site "https://www.chess.com"]

[Event "Titled Tuesday Blitz January 17 Early 2023"]
[White "Lymar, Vladislav"]
[Black "Warchol, Kamil"]
[WhiteFideId "14162180"]
[BlackFideId "21858241"]
[WhiteElo "2119"]
[BlackElo "2173"]
[Result "1-0"]
[Round "01"]
[TimeControl "180+2"]
[Date "2023.01.17"]
[WhiteClock "0:01:11"]
[BlackClock "0:00:25"]

1. e4 {[%clk 0:02:56]}  c5 {[%clk 0:02:58]} 2. Nf3 {[%clk 0:02:56]}  d6 {[%clk 0:02:57]} 3. g3 {[%clk 0:02:56]}  Nf6 {[%clk 0:02:54]} 4. Nc3 {[%clk 0:02:56]}  Nc6 {[%clk 0:02:54]} 5. Bg2 {[%clk 0:02:56]}  e6 {[%clk 0:02:52]} 6. d3 {[%clk 0:02:56]}  Be7 {[%clk 0:02:51]} 7. O-O {[%clk 0:02:56]}  O-O {[%clk 0:02:48]} 8. a4 {[%clk 0:02:56]}  a6 {[%clk 0:02:38]} 9. Nd2 {[%clk 0:02:55]}  Rb8 {[%clk 0:02:35]} 10. f4 {[%clk 0:02:55]}  Qc7 {[%clk 0:02:31]} 11. g4 {[%clk 0:02:55]}  b5 {[%clk 0:02:27]} 12. axb5 {[%clk 0:02:53]}  axb5 {[%clk 0:02:24]} 13. g5 {[%clk 0:02:53]}  Nd7 {[%clk 0:02:22]} 14. Nf3 {[%clk 0:02:54]}  b4 {[%clk 0:02:05]} 15. Ne2 {[%clk 0:02:53]}  d5 {[%clk 0:02:04]} 16. Ng3 {[%clk 0:02:50]}  Nb6 {[%clk 0:01:56]} 17. f5 {[%clk 0:02:47]}  exf5 {[%clk 0:01:45]} 18. exf5 {[%clk 0:02:44]}  f6 {[%clk 0:01:43]} 19. gxf6 {[%clk 0:02:29]}  Rxf6 {[%clk 0:01:26]} 20. Nh5 {[%clk 0:02:18]}  Rxf5 {[%clk 0:01:17]} 21. Nd2 {[%clk 0:02:17]}  Nd4 {[%clk 0:01:04]} 22. Rxf5 {[%clk 0:01:33]}  Bxf5 {[%clk 0:01:02]} 23. Nf3 {[%clk 0:01:32]}  Nxf3+ {[%clk 0:00:57]} 24. Bxf3 {[%clk 0:01:32]}  Bd6 {[%clk 0:00:54]} 25. Qf1 {[%clk 0:01:28]}  Bxh2+ {[%clk 0:00:51]} 26. Kh1 {[%clk 0:01:29]}  Rf8 {[%clk 0:00:51]} 27. Qg2 {[%clk 0:01:29]}  Bg6 {[%clk 0:00:45]} 28. Bxd5+ {[%clk 0:01:26]}  Nxd5 {[%clk 0:00:44]} 29. Qxd5+ {[%clk 0:01:27]}  Kh8 {[%clk 0:00:44]} 30. Be3 {[%clk 0:01:24]}  h6 {[%clk 0:00:27]} 31. Bxc5 {[%clk 0:01:15]}  Rf5 {[%clk 0:00:25]} 32. Ra8+ {[%clk 0:01:13]}  Kh7 {[%clk 0:00:25]} 33. Qg8# {[%clk 0:01:11]} 1-0


[Site "https://www.chess.com"]

[Event "Titled Tuesday Blitz January 17 Early 2023"]
[White "Nikulina, Alena"]
[Black "Taboas Rodriguez, Daniel"]
[WhiteFideId "4172051"]
[BlackFideId "2208466"]
[WhiteElo "1857"]
[BlackElo "2371"]
[Result "0-1"]
[Round "01"]
[TimeControl "180+2"]
[Date "2023.01.17"]
[WhiteClock "0:00:28"]
[BlackClock "0:00:54"]

1. e4 {[%clk 0:02:43]}  e5 {[%clk 0:02:58]} 2. Nf3 {[%clk 0:02:43]}  Nc6 {[%clk 0:02:58]} 3. Bb5 {[%clk 0:02:44]}  Nf6 {[%clk 0:02:58]} 4. O-O {[%clk 0:02:43]}  Nxe4 {[%clk 0:02:57]} 5. Re1 {[%clk 0:02:43]}  Nd6 {[%clk 0:02:56]} 6. a4 {[%clk 0:02:43]}  Be7 {[%clk 0:02:54]} 7. Nxe5 {[%clk 0:02:23]}  Nxb5 {[%clk 0:02:47]} 8. axb5 {[%clk 0:02:21]}  Nxe5 {[%clk 0:02:47]} 9. Rxe5 {[%clk 0:02:20]}  O-O {[%clk 0:02:48]} 10. d4 {[%clk 0:02:18]}  Bf6 {[%clk 0:02:39]} 11. Re3 {[%clk 0:02:05]}  d5 {[%clk 0:02:35]} 12. Nc3 {[%clk 0:01:52]}  Be6 {[%clk 0:02:10]} 13. Qf3 {[%clk 0:01:33]}  Re8 {[%clk 0:02:02]} 14. Bd2 {[%clk 0:01:33]}  Bxd4 {[%clk 0:01:46]} 15. Rd3 {[%clk 0:01:23]}  Bxc3 {[%clk 0:01:37]} 16. Bxc3 {[%clk 0:01:15]}  Qg5 {[%clk 0:01:34]} 17. g3 {[%clk 0:00:59]}  c5 {[%clk 0:01:27]} 18. Bd2 {[%clk 0:00:57]}  Qg6 {[%clk 0:01:18]} 19. b3 {[%clk 0:00:49]}  a6 {[%clk 0:01:12]} 20. bxa6 {[%clk 0:00:49]}  Rxa6 {[%clk 0:01:13]} 21. Rxa6 {[%clk 0:00:48]}  bxa6 {[%clk 0:01:14]} 22. Bf4 {[%clk 0:00:42]}  h6 {[%clk 0:01:09]} 23. h4 {[%clk 0:00:41]}  d4 {[%clk 0:01:06]} 24. Qc6 {[%clk 0:00:38]}  Rc8 {[%clk 0:00:56]} 25. Qxa6 {[%clk 0:00:38]}  Bf5 {[%clk 0:00:55]} 26. Rd2 {[%clk 0:00:28]}  Qxa6 {[%clk 0:00:54]} 0-1


[Site "https://www.chess.com"]

[Event "Titled Tuesday Blitz January 17 Early 2023"]
[White "Jimenez Fernandez, Rebeca"]
[Black "Omelja, Artem"]
[WhiteFideId "32070934"]
[BlackFideId "14119846"]
[WhiteElo "2069"]
[BlackElo "2446"]
[Result "0-1"]
[Round "01"]
[TimeControl "180+2"]
[Date "2023.01.17"]
[WhiteClock "0:00:02"]
[BlackClock "0:01:11"]

1. e4 {[%clk 0:03:00]}  c5 {[%clk 0:02:58]} 2. Nc3 {[%clk 0:03:00]}  a6 {[%clk 0:02:57]} 3. g3 {[%clk 0:03:01]}  b5 {[%clk 0:02:55]} 4. Bg2 {[%clk 0:03:01]}  Bb7 {[%clk 0:02:55]} 5. d3 {[%clk 0:03:02]}  e6 {[%clk 0:02:48]} 6. Be3 {[%clk 0:03:01]}  Nc6 {[%clk 0:02:47]} 7. Nge2 {[%clk 0:03:00]}  d6 {[%clk 0:02:33]} 8. O-O {[%clk 0:03:00]}  Nf6 {[%clk 0:02:32]} 9. h3 {[%clk 0:02:59]}  Be7 {[%clk 0:02:32]} 10. f4 {[%clk 0:02:59]}  O-O {[%clk 0:02:21]} 11. g4 {[%clk 0:02:59]}  Rc8 {[%clk 0:02:14]} 12. Ng3 {[%clk 0:02:57]}  Re8 {[%clk 0:02:07]} 13. f5 {[%clk 0:02:54]}  Ne5 {[%clk 0:02:03]} 14. g5 {[%clk 0:02:53]}  Nfd7 {[%clk 0:02:03]} 15. f6 {[%clk 0:02:52]}  Bf8 {[%clk 0:02:03]} 16. fxg7 {[%clk 0:02:50]}  Bxg7 {[%clk 0:02:02]} 17. Nh5 {[%clk 0:02:50]}  Ng6 {[%clk 0:02:01]} 18. Nxg7 {[%clk 0:02:45]}  Kxg7 {[%clk 0:02:01]} 19. d4 {[%clk 0:02:37]}  cxd4 {[%clk 0:01:59]} 20. Bxd4+ {[%clk 0:02:30]}  Nde5 {[%clk 0:02:00]} 21. Qf3 {[%clk 0:02:20]}  Rc7 {[%clk 0:01:57]} 22. Qf2 {[%clk 0:02:15]}  Qxg5 {[%clk 0:01:55]} 23. Kh1 {[%clk 0:02:02]}  b4 {[%clk 0:01:43]} 24. Ne2 {[%clk 0:01:58]}  Rxc2 {[%clk 0:01:42]} 25. Qxf7+ {[%clk 0:01:58]}  Kh6 {[%clk 0:01:39]} 26. Qf2 {[%clk 0:01:41]}  Rf8 {[%clk 0:01:22]} 27. Be3 {[%clk 0:01:41]}  Rxf2 {[%clk 0:01:21]} 28. Bxg5+ {[%clk 0:01:42]}  Kxg5 {[%clk 0:01:22]} 29. Rxf2 {[%clk 0:01:42]}  Nd3 {[%clk 0:01:23]} 30. Rf3 {[%clk 0:01:15]}  Rxe2 {[%clk 0:01:23]} 31. Rxd3 {[%clk 0:01:15]}  Rxg2 {[%clk 0:01:23]} 32. Kxg2 {[%clk 0:00:49]}  Bxe4+ {[%clk 0:01:22]} 33. Kg3 {[%clk 0:00:49]}  Bxd3 {[%clk 0:01:22]} 34. Rd1 {[%clk 0:00:49]}  Ne5 {[%clk 0:01:22]} 35. a3 {[%clk 0:00:38]}  bxa3 {[%clk 0:01:18]} 36. bxa3 {[%clk 0:00:39]}  d5 {[%clk 0:01:18]} 37. h4+ {[%clk 0:00:36]}  Kf5 {[%clk 0:01:18]} 38. h5 {[%clk 0:00:25]}  Be4 {[%clk 0:01:14]} 39. h6 {[%clk 0:00:20]}  Kg6 {[%clk 0:01:14]} 40. Rc1 {[%clk 0:00:18]}  Nc4 {[%clk 0:01:13]} 41. Rf1 {[%clk 0:00:15]}  Bf5 {[%clk 0:01:11]} 42. Re1 {[%clk 0:00:15]}  Nxa3 {[%clk 0:01:10]} 43. Ra1 {[%clk 0:00:14]}  Nc4 {[%clk 0:01:11]} 44. Rxa6 {[%clk 0:00:14]}  Kxh6 {[%clk 0:01:11]} 45. Kf4 {[%clk 0:00:14]}  Kg6 {[%clk 0:01:12]} 46. Ra7 {[%clk 0:00:13]}  h5 {[%clk 0:01:11]} 47. Ra1 {[%clk 0:00:13]}  e5+ {[%clk 0:01:11]} 48. Kf3 {[%clk 0:00:13]}  Kg5 {[%clk 0:01:10]} 49. Rg1+ {[%clk 0:00:13]}  Bg4+ {[%clk 0:01:11]} 50. Kf2 {[%clk 0:00:12]}  e4 {[%clk 0:01:11]} 51. Rg3 {[%clk 0:00:10]}  e3+ {[%clk 0:01:11]} 52. Ke1 {[%clk 0:00:10]}  d4 {[%clk 0:01:11]} 53. Rg1 {[%clk 0:00:07]}  d3 {[%clk 0:01:11]} 54. Rg3 {[%clk 0:00:05]}  d2+ {[%clk 0:01:11]} 55. Kf1 {[%clk 0:00:04]}  e2+ {[%clk 0:01:11]} 56. Kg2 {[%clk 0:00:04]}  e1=Q {[%clk 0:01:10]} 57. Rxg4+ {[%clk 0:00:04]}  hxg4 {[%clk 0:01:09]} 58. Kh2 {[%clk 0:00:02]}  Qf2+ {[%clk 0:01:10]} 59. Kh1 {[%clk 0:00:02]}  d1=Q# {[%clk 0:01:11]} 0-1


[Site "https://www.chess.com"]

[Event "Titled Tuesday Blitz January 17 Early 2023"]
[White "Melian, Juan Sebastian"]
[Black "Mitrovic, Darko R"]
[WhiteFideId "3706575"]
[BlackFideId "927023"]
[WhiteElo "2293"]
[BlackElo "2220"]
[Result "0-1"]
[Round "01"]
[TimeControl "180+2"]
[Date "2023.01.17"]
[WhiteClock "0:00:08"]
[BlackClock "0:00:05"]

1. b3 {[%clk 0:02:57]}  d5 {[%clk 0:02:58]} 2. Bb2 {[%clk 0:02:58]}  c5 {[%clk 0:02:58]} 3. e3 {[%clk 0:02:53]}  Nf6 {[%clk 0:02:43]} 4. f4 {[%clk 0:02:45]}  g6 {[%clk 0:02:42]} 5. Nf3 {[%clk 0:02:44]}  Bg7 {[%clk 0:02:42]} 6. Bb5+ {[%clk 0:02:45]}  Bd7 {[%clk 0:02:41]} 7. Bxd7+ {[%clk 0:02:31]}  Nbxd7 {[%clk 0:02:41]} 8. O-O {[%clk 0:02:30]}  O-O {[%clk 0:02:41]} 9. Qe2 {[%clk 0:02:27]}  Rc8 {[%clk 0:02:39]} 10. c4 {[%clk 0:02:20]}  e6 {[%clk 0:02:35]} 11. d3 {[%clk 0:02:19]}  Qe7 {[%clk 0:02:33]} 12. Nbd2 {[%clk 0:02:07]}  Ne8 {[%clk 0:02:20]} 13. Bxg7 {[%clk 0:02:06]}  Nxg7 {[%clk 0:02:20]} 14. e4 {[%clk 0:01:53]}  dxc4 {[%clk 0:02:09]} 15. Nxc4 {[%clk 0:01:36]}  Nb8 {[%clk 0:02:02]} 16. Rad1 {[%clk 0:01:14]}  Nc6 {[%clk 0:02:01]} 17. d4 {[%clk 0:01:14]}  cxd4 {[%clk 0:01:58]} 18. Nxd4 {[%clk 0:01:15]}  Nxd4 {[%clk 0:01:53]} 19. Rxd4 {[%clk 0:01:16]}  Qc5 {[%clk 0:01:48]} 20. Qf2 {[%clk 0:01:15]}  Rcd8 {[%clk 0:01:13]} 21. Rxd8 {[%clk 0:01:14]}  Qxf2+ {[%clk 0:01:12]} 22. Kxf2 {[%clk 0:01:15]}  Rxd8 {[%clk 0:01:12]} 23. Ke3 {[%clk 0:01:08]}  Ne8 {[%clk 0:01:08]} 24. e5 {[%clk 0:00:58]}  Kf8 {[%clk 0:01:01]} 25. Rc1 {[%clk 0:00:55]}  Ke7 {[%clk 0:00:54]} 26. Na5 {[%clk 0:00:53]}  Rb8 {[%clk 0:00:40]} 27. Ke4 {[%clk 0:00:49]}  h5 {[%clk 0:00:37]} 28. g3 {[%clk 0:00:44]}  Kd7 {[%clk 0:00:36]} 29. h3 {[%clk 0:00:35]}  Nc7 {[%clk 0:00:36]} 30. Nc4 {[%clk 0:00:30]}  Nd5 {[%clk 0:00:19]} 31. Nd6 {[%clk 0:00:18]}  f5+ {[%clk 0:00:18]} 32. Kf3 {[%clk 0:00:15]}  b5 {[%clk 0:00:14]} 33. g4 {[%clk 0:00:07]}  hxg4+ {[%clk 0:00:13]} 34. hxg4 {[%clk 0:00:08]}  Rh8 {[%clk 0:00:11]} 35. Kg3 {[%clk 0:00:07]}  b4 {[%clk 0:00:09]} 36. g5 {[%clk 0:00:04]}  a5 {[%clk 0:00:07]} 37. Nb5 {[%clk 0:00:02]}  Rc8 {[%clk 0:00:04]} 38. Rxc8 {[%clk 0:00:02]}  Kxc8 {[%clk 0:00:04]} 39. Nd6+ {[%clk 0:00:01]}  Kd7 {[%clk 0:00:04]} 40. Nf7 {[%clk 0:00:02]}  Nc3 {[%clk 0:00:03]} 41. Nh8 {[%clk 0:00:02]}  Nxa2 {[%clk 0:00:03]} 42. Nxg6 {[%clk 0:00:03]}  a4 {[%clk 0:00:03]} 43. Nf8+ {[%clk 0:00:02]}  Ke7 {[%clk 0:00:02]} 44. Ng6+ {[%clk 0:00:02]}  Kf7 {[%clk 0:00:02]} 45. Nh4 {[%clk 0:00:02]}  axb3 {[%clk 0:00:02]} 46. Nf3 {[%clk 0:00:03]}  b2 {[%clk 0:00:02]} 47. Nd2 {[%clk 0:00:04]}  Nc3 {[%clk 0:00:02]} 48. Kh4 {[%clk 0:00:04]}  b1=Q {[%clk 0:00:02]} 49. Nxb1 {[%clk 0:00:05]}  Nxb1 {[%clk 0:00:03]} 50. Kh5 {[%clk 0:00:05]}  Nc3 {[%clk 0:00:03]} 51. Kh6 {[%clk 0:00:06]}  Kg8 {[%clk 0:00:03]} 52. Kg6 {[%clk 0:00:06]}  b3 {[%clk 0:00:04]} 53. Kf6 {[%clk 0:00:07]}  b2 {[%clk 0:00:04]} 54. Kxe6 {[%clk 0:00:08]}  b1=Q {[%clk 0:00:04]} 55. Kf6 {[%clk 0:00:09]}  Qe4 {[%clk 0:00:04]} 56. g6 {[%clk 0:00:09]}  Qxf4 {[%clk 0:00:04]} 57. e6 {[%clk 0:00:09]}  Ne4+ {[%clk 0:00:05]} 58. Ke7 {[%clk 0:00:08]}  Qd6+ {[%clk 0:00:04]} 59. Ke8 {[%clk 0:00:08]}  Qxe6+ {[%clk 0:00:04]} 60. Kd8 {[%clk 0:00:08]}  Qxg6 {[%clk 0:00:05]} 0-1


[Site "https://www.chess.com"]

[Event "Titled Tuesday Blitz January 17 Early 2023"]
[White "Levine, David"]
[Black "Skatchkov, Valery"]
[WhiteFideId "2011611"]
[BlackFideId "24195812"]
[WhiteElo "2040"]
[BlackElo "2167"]
[Result "0-1"]
[Round "01"]
[TimeControl "180+2"]
[Date "2023.01.17"]
[WhiteClock "0:01:22"]
[BlackClock "0:02:01"]

1. d4 {[%clk 0:02:59]}  Nf6 {[%clk 0:02:45]} 2. c4 {[%clk 0:02:59]}  e6 {[%clk 0:02:45]} 3. g3 {[%clk 0:02:59]}  d5 {[%clk 0:02:44]} 4. Bg2 {[%clk 0:02:58]}  Bb4+ {[%clk 0:02:44]} 5. Bd2 {[%clk 0:02:58]}  a5 {[%clk 0:02:45]} 6. Nf3 {[%clk 0:02:57]}  O-O {[%clk 0:02:45]} 7. O-O {[%clk 0:02:56]}  dxc4 {[%clk 0:02:45]} 8. Qc2 {[%clk 0:02:55]}  b5 {[%clk 0:02:42]} 9. a4 {[%clk 0:02:53]}  c6 {[%clk 0:02:41]} 10. Ne5 {[%clk 0:02:50]}  Ra6 {[%clk 0:02:40]} 11. axb5 {[%clk 0:02:43]}  cxb5 {[%clk 0:02:37]} 12. Bxb4 {[%clk 0:02:25]}  axb4 {[%clk 0:02:36]} 13. Rxa6 {[%clk 0:02:24]}  Nxa6 {[%clk 0:02:36]} 14. e3 {[%clk 0:02:20]}  Qc7 {[%clk 0:02:34]} 15. Nd2 {[%clk 0:02:16]}  Bb7 {[%clk 0:02:34]} 16. e4 {[%clk 0:02:13]}  Rd8 {[%clk 0:02:23]} 17. f4 {[%clk 0:01:50]}  Rxd4 {[%clk 0:02:22]} 18. Ra1 {[%clk 0:01:49]}  c3 {[%clk 0:02:11]} 19. Nb3 {[%clk 0:01:41]}  Rd8 {[%clk 0:02:04]} 20. Na5 {[%clk 0:01:40]}  Rd2 {[%clk 0:02:00]} 21. Qb3 {[%clk 0:01:28]}  Qb6+ {[%clk 0:02:00]} 22. Kh1 {[%clk 0:01:26]}  Qf2 {[%clk 0:02:01]} 23. Rg1 {[%clk 0:01:22]}  Bxe4 {[%clk 0:02:01]} 0-1


[Site "https://www.chess.com"]

[Event "Titled Tuesday Blitz January 17 Early 2023"]
[White "Taichman, Ori"]
[Black "Thomas, Anysia"]
[WhiteFideId "2804069"]
[BlackFideId "670472"]
[WhiteElo "2299"]
[BlackElo "2147"]
[Result "0-1"]
[Round "01"]
[TimeControl "180+2"]
[Date "2023.01.17"]
[WhiteClock "0:01:14"]
[BlackClock "0:01:05"]

1. e4 {[%clk 0:02:58]}  c5 {[%clk 0:02:59]} 2. Nf3 {[%clk 0:02:56]}  g6 {[%clk 0:02:58]} 3. d4 {[%clk 0:02:56]}  cxd4 {[%clk 0:02:59]} 4. Qxd4 {[%clk 0:02:56]}  Nf6 {[%clk 0:02:59]} 5. Nc3 {[%clk 0:02:56]}  Nc6 {[%clk 0:02:59]} 6. Qa4 {[%clk 0:02:56]}  d6 {[%clk 0:02:59]} 7. e5 {[%clk 0:02:57]}  dxe5 {[%clk 0:03:00]} 8. Nxe5 {[%clk 0:02:57]}  Bd7 {[%clk 0:02:57]} 9. Nxd7 {[%clk 0:02:57]}  Nxd7 {[%clk 0:02:58]} 10. Bb5 {[%clk 0:02:55]}  Bg7 {[%clk 0:02:58]} 11. Bxc6 {[%clk 0:02:55]}  bxc6 {[%clk 0:02:58]} 12. Qxc6 {[%clk 0:02:56]}  Rc8 {[%clk 0:02:54]} 13. Qf3 {[%clk 0:02:56]}  O-O {[%clk 0:02:47]} 14. Bd2 {[%clk 0:02:43]}  Ne5 {[%clk 0:02:45]} 15. Qe2 {[%clk 0:01:53]}  Nc4 {[%clk 0:02:43]} 16. O-O-O {[%clk 0:01:52]}  Qb6 {[%clk 0:02:36]} 17. b3 {[%clk 0:01:30]}  Nxd2 {[%clk 0:02:22]} 18. Nd5 {[%clk 0:01:29]}  Qd4 {[%clk 0:02:07]} 19. Nxe7+ {[%clk 0:01:28]}  Kh8 {[%clk 0:02:07]} 20. Nxc8 {[%clk 0:01:28]}  Rxc8 {[%clk 0:01:49]} 21. Qe3 {[%clk 0:01:16]}  Qb2+ {[%clk 0:01:11]} 22. Kxd2 {[%clk 0:01:15]}  Qxc2+ {[%clk 0:01:10]} 23. Ke1 {[%clk 0:01:15]}  Bc3+ {[%clk 0:01:10]} 24. Rd2 {[%clk 0:01:15]}  Bxd2+ {[%clk 0:01:07]} 25. Qxd2 {[%clk 0:01:14]}  Re8+ {[%clk 0:01:06]} 26. Qe3 {[%clk 0:01:14]}  Rxe3+ {[%clk 0:01:05]} 27. fxe3 {[%clk 0:01:14]}  Qc1+ {[%clk 0:01:05]} 0-1


[Site "https://www.chess.com"]